[Event "November 21 Late 2023"]
[Site "https://www.chess.com"]
[Date "2023.11.21"]
[Round "8"]
[White "Kostiukov, Alexandr"]
[Black "Kochiev, Ivan"]
[Result "1-0"]
[Board "84"]
[TimeControl "180+1"]
[WhiteFideId "14108100"]
[BlackFideId "2917890"]
[WhiteElo "2144"]
[BlackElo "2285"]
[WhiteTeam "UKR"]
[BlackTeam "BUL"]
[WhiteClock "0:00:16"]
[BlackClock "0:00:01"]

1. g3 {[%clk 0:02:56]}  Nf6 {[%clk 0:02:57]} 2. Bg2 {[%clk 0:02:55]}  d5 {[%clk 0:02:58]} 3. d3 {[%clk 0:02:55]}  Bf5 {[%clk 0:02:58]} 4. Nc3 {[%clk 0:02:53]}  e6 {[%clk 0:02:56]} 5. e4 {[%clk 0:02:53]}  Bg6 {[%clk 0:02:56]} 6. Qe2 {[%clk 0:02:51]}  Be7 {[%clk 0:02:54]} 7. Nh3 {[%clk 0:02:51]}  O-O {[%clk 0:02:54]} 8. Nf4 {[%clk 0:02:51]}  dxe4 {[%clk 0:02:49]} 9. dxe4 {[%clk 0:02:49]}  Nc6 {[%clk 0:02:45]} 10. O-O {[%clk 0:02:43]}  Bc5 {[%clk 0:02:32]} 11. Rd1 {[%clk 0:02:39]}  Qe7 {[%clk 0:02:32]} 12. e5 {[%clk 0:02:29]}  Nd7 {[%clk 0:02:30]} 13. Bxc6 {[%clk 0:01:51]}  bxc6 {[%clk 0:02:26]} 14. Nxg6 {[%clk 0:01:31]}  fxg6 {[%clk 0:01:40]} 15. Ne4 {[%clk 0:01:30]}  Nxe5 {[%clk 0:01:34]} 16. Bg5 {[%clk 0:01:24]}  Qf7 {[%clk 0:01:05]} 17. Bf4 {[%clk 0:01:13]}  Bd6 {[%clk 0:00:21]} 18. Rxd6 {[%clk 0:01:00]}  Nf3+ {[%clk 0:00:11]} 19. Qxf3 {[%clk 0:00:57]}  cxd6 {[%clk 0:00:12]} 20. Nxd6 {[%clk 0:00:53]}  Qf6 {[%clk 0:00:12]} 21. Qc3 {[%clk 0:00:44]}  Qe7 {[%clk 0:00:06]} 22. Ne4 {[%clk 0:00:38]}  Rad8 {[%clk 0:00:05]} 23. Be3 {[%clk 0:00:38]}  Rf3 {[%clk 0:00:03]} 24. Bg5 {[%clk 0:00:30]}  Rxc3 {[%clk 0:00:01]} 25. Bxe7 {[%clk 0:00:30]}  Re8 {[%clk 0:00:01]} 26. Nxc3 {[%clk 0:00:28]}  Rxe7 {[%clk 0:00:02]} 27. Rd1 {[%clk 0:00:29]}  Rb7 {[%clk 0:00:01]} 28. b3 {[%clk 0:00:29]}  h6 {[%clk 0:00:02]} 29. Rd6 {[%clk 0:00:28]}  Kf7 {[%clk 0:00:01]} 30. Rxc6 {[%clk 0:00:28]}  e5 {[%clk 0:00:02]} 31. Rc4 {[%clk 0:00:27]}  Rd7 {[%clk 0:00:02]} 32. Re4 {[%clk 0:00:18]}  Kf6 {[%clk 0:00:02]} 33. Re3 {[%clk 0:00:15]}  Rd2 {[%clk 0:00:01]} 34. Ne4+ {[%clk 0:00:16]} 1-0

[Event "November 21 Late 2023"]
[Site "https://www.chess.com"]
[Date "2023.11.21"]
[Round "8"]
[White "Nita, Lucian"]
[Black "Kovacsy, Barnabas"]
[Result "1-0"]
[Board "86"]
[TimeControl "180+1"]
[WhiteFideId "1206923"]
[BlackFideId "769290"]
[WhiteElo "2066"]
[BlackElo "2130"]
[WhiteTeam "ROU"]
[BlackTeam "HUN"]
[WhiteClock "0:00:30"]
[BlackClock "0:01:46"]

1. e4 {[%clk 0:03:00]}  c6 {[%clk 0:02:57]} 2. Nf3 {[%clk 0:03:00]}  d5 {[%clk 0:02:57]} 3. d3 {[%clk 0:03:01]}  dxe4 {[%clk 0:02:55]} 4. dxe4 {[%clk 0:03:02]}  Qxd1+ {[%clk 0:02:55]} 5. Kxd1 {[%clk 0:03:02]}  Bg4 {[%clk 0:02:52]} 6. c3 {[%clk 0:03:01]}  Nd7 {[%clk 0:02:52]} 7. Kc2 {[%clk 0:03:01]}  O-O-O {[%clk 0:02:51]} 8. h3 {[%clk 0:02:58]}  Bxf3 {[%clk 0:02:51]} 9. gxf3 {[%clk 0:02:58]}  e5 {[%clk 0:02:51]} 10. f4 {[%clk 0:02:58]}  exf4 {[%clk 0:02:45]} 11. Bxf4 {[%clk 0:02:57]}  f6 {[%clk 0:02:46]} 12. Nd2 {[%clk 0:02:54]}  Ne7 {[%clk 0:02:45]} 13. Nc4 {[%clk 0:02:54]}  Ng6 {[%clk 0:02:45]} 14. Bg3 {[%clk 0:02:44]}  Nde5 {[%clk 0:02:44]} 15. Nxe5 {[%clk 0:02:42]}  Nxe5 {[%clk 0:02:45]} 16. f4 {[%clk 0:02:42]}  Ng6 {[%clk 0:02:45]} 17. h4 {[%clk 0:02:36]}  Bd6 {[%clk 0:02:45]} 18. Bh3+ {[%clk 0:02:33]}  Kc7 {[%clk 0:02:46]} 19. Raf1 {[%clk 0:02:32]}  Rhe8 {[%clk 0:02:44]} 20. h5 {[%clk 0:02:26]}  Nf8 {[%clk 0:02:41]} 21. Re1 {[%clk 0:02:17]}  g6 {[%clk 0:02:39]} 22. hxg6 {[%clk 0:02:11]}  hxg6 {[%clk 0:02:40]} 23. Bg2 {[%clk 0:02:07]}  Ne6 {[%clk 0:02:37]} 24. Rh7+ {[%clk 0:02:06]}  Rd7 {[%clk 0:02:36]} 25. Rxd7+ {[%clk 0:01:59]}  Kxd7 {[%clk 0:02:37]} 26. e5 {[%clk 0:01:35]}  fxe5 {[%clk 0:02:34]} 27. fxe5 {[%clk 0:01:35]}  Bc5 {[%clk 0:02:30]} 28. Be4 {[%clk 0:01:26]}  g5 {[%clk 0:02:25]} 29. b4 {[%clk 0:01:23]}  Bb6 {[%clk 0:02:23]} 30. Rh1 {[%clk 0:01:14]}  Be3 {[%clk 0:02:07]} 31. Bf5 {[%clk 0:00:43]}  Re7 {[%clk 0:02:01]} 32. Kd3 {[%clk 0:00:41]}  Bf4 {[%clk 0:01:59]} 33. Bxf4 {[%clk 0:00:41]}  gxf4 {[%clk 0:02:00]} 34. Ke4 {[%clk 0:00:40]}  Rf7 {[%clk 0:01:51]} 35. Rh6 {[%clk 0:00:30]}  f3 {[%clk 0:01:46]} 36. Bxe6+ {[%clk 0:00:30]} 1-0

[Event "November 21 Late 2023"]
[Site "https://www.chess.com"]
[Date "2023.11.21"]
[Round "8"]
[White "Osmak, Yuliia"]
[Black "Kujawski, Adam"]
[Result "1-0"]
[Board "87"]
[TimeControl "180+1"]
[WhiteFideId "14101602"]
[BlackFideId "1100920"]
[WhiteElo "2303"]
[BlackElo "2054"]
[WhiteTeam "UKR"]
[BlackTeam "POL"]
[WhiteClock "0:00:24"]
[BlackClock "0:00:00"]

1. Nf3 {[%clk 0:02:55]}  d5 {[%clk 0:02:58]} 2. g3 {[%clk 0:02:55]}  Nc6 {[%clk 0:02:41]} 3. d4 {[%clk 0:02:53]}  Bf5 {[%clk 0:02:40]} 4. Bg2 {[%clk 0:02:52]}  Nb4 {[%clk 0:02:40]} 5. Na3 {[%clk 0:02:51]}  e6 {[%clk 0:02:40]} 6. O-O {[%clk 0:02:49]}  Nf6 {[%clk 0:02:40]} 7. c3 {[%clk 0:02:49]}  Na6 {[%clk 0:02:38]} 8. Nc2 {[%clk 0:02:45]}  h6 {[%clk 0:02:36]} 9. Ne5 {[%clk 0:02:38]}  Be7 {[%clk 0:02:27]} 10. c4 {[%clk 0:02:29]}  O-O {[%clk 0:02:22]} 11. b3 {[%clk 0:02:27]}  Be4 {[%clk 0:01:55]} 12. Bb2 {[%clk 0:02:07]}  Bxg2 {[%clk 0:01:52]} 13. Kxg2 {[%clk 0:02:08]}  c5 {[%clk 0:01:33]} 14. dxc5 {[%clk 0:02:01]}  Nxc5 {[%clk 0:01:22]} 15. Ne3 {[%clk 0:01:54]}  dxc4 {[%clk 0:01:14]} 16. N3xc4 {[%clk 0:01:52]}  Qd5+ {[%clk 0:01:02]} 17. Qxd5 {[%clk 0:01:50]}  Nxd5 {[%clk 0:01:03]} 18. Rac1 {[%clk 0:01:48]}  Rac8 {[%clk 0:00:56]} 19. Ba3 {[%clk 0:01:41]}  Rfe8 {[%clk 0:00:45]} 20. Rfd1 {[%clk 0:01:31]}  b5 {[%clk 0:00:38]} 21. Na5 {[%clk 0:01:25]}  b4 {[%clk 0:00:36]} 22. Bb2 {[%clk 0:01:22]}  Ne4 {[%clk 0:00:20]} 23. Nac6 {[%clk 0:01:18]}  Bc5 {[%clk 0:00:16]} 24. Nd4 {[%clk 0:01:02]}  Nec3 {[%clk 0:00:14]} 25. Bxc3 {[%clk 0:01:00]}  Nxc3 {[%clk 0:00:14]} 26. Rd2 {[%clk 0:00:59]}  Bxd4 {[%clk 0:00:13]} 27. Rxd4 {[%clk 0:00:57]}  Nxa2 {[%clk 0:00:09]} 28. Rxc8 {[%clk 0:00:43]}  Rxc8 {[%clk 0:00:10]} 29. Rd7 {[%clk 0:00:42]}  f6 {[%clk 0:00:05]} 30. Nc4 {[%clk 0:00:38]}  Nc1 {[%clk 0:00:03]} 31. Nd6 {[%clk 0:00:31]}  Rc2 {[%clk 0:00:02]} 32. Rxa7 {[%clk 0:00:26]}  Nxb3 {[%clk 0:00:00]} 33. Ne8 {[%clk 0:00:24]} 1-0

[Event "November 21 Late 2023"]
[Site "https://www.chess.com"]
[Date "2023.11.21"]
[Round "8"]
[White "Maisuradze, Nino"]
[Black "Serban, Cristian-Stefan"]
[Result "0-1"]
[Board "88"]
[TimeControl "180+1"]
[WhiteFideId "13601717"]
[BlackFideId "1241443"]
[WhiteElo "2108"]
[BlackElo "2028"]
[WhiteTeam "FRA"]
[BlackTeam "ROU"]
[WhiteClock "0:00:20"]
[BlackClock "0:00:49"]

1. b3 {[%clk 0:03:00]}  e5 {[%clk 0:02:58]} 2. Bb2 {[%clk 0:03:01]}  Nc6 {[%clk 0:02:59]} 3. e4 {[%clk 0:02:59]}  Nf6 {[%clk 0:02:59]} 4. Nc3 {[%clk 0:02:58]}  a6 {[%clk 0:02:53]} 5. Nf3 {[%clk 0:02:57]}  Bc5 {[%clk 0:02:53]} 6. h3 {[%clk 0:02:57]}  d6 {[%clk 0:02:53]} 7. Nd5 {[%clk 0:02:54]}  Nxe4 {[%clk 0:02:49]} 8. d4 {[%clk 0:02:50]}  exd4 {[%clk 0:02:38]} 9. Qe2 {[%clk 0:02:44]}  O-O {[%clk 0:02:39]} 10. O-O-O {[%clk 0:02:32]}  Re8 {[%clk 0:02:35]} 11. Re1 {[%clk 0:02:23]}  Bf5 {[%clk 0:02:32]} 12. g4 {[%clk 0:02:18]}  Bg6 {[%clk 0:02:21]} 13. Bg2 {[%clk 0:02:07]}  Qd7 {[%clk 0:02:18]} 14. Qf1 {[%clk 0:02:01]}  d3 {[%clk 0:01:54]} 15. Ne3 {[%clk 0:01:30]}  dxc2 {[%clk 0:01:34]} 16. Nh4 {[%clk 0:01:29]}  Nb4 {[%clk 0:01:29]} 17. Nxg6 {[%clk 0:01:22]}  Nxa2+ {[%clk 0:01:25]} 18. Kxc2 {[%clk 0:01:21]}  Nb4+ {[%clk 0:01:26]} 19. Kc1 {[%clk 0:01:18]}  fxg6 {[%clk 0:01:24]} 20. Qc4+ {[%clk 0:01:06]}  d5 {[%clk 0:01:11]} 21. Nxd5 {[%clk 0:00:48]}  Qxd5 {[%clk 0:01:11]} 22. Qxd5+ {[%clk 0:00:45]}  Nxd5 {[%clk 0:01:12]} 23. Bxe4 {[%clk 0:00:42]}  c6 {[%clk 0:01:10]} 24. Rhf1 {[%clk 0:00:36]}  Nf4 {[%clk 0:01:09]} 25. h4 {[%clk 0:00:31]}  Rad8 {[%clk 0:01:03]} 26. f3 {[%clk 0:00:22]}  Bb4 {[%clk 0:00:49]} 27. Re2 {[%clk 0:00:20]}  Nxe2+ {[%clk 0:00:49]} 0-1

[Event "November 21 Late 2023"]
[Site "https://www.chess.com"]
[Date "2023.11.21"]
[Round "8"]
[White "Rangel, Daniel"]
[Black "Padalka, Artem"]
[Result "1-0"]
[Board "90"]
[TimeControl "180+1"]
[WhiteFideId "2124475"]
[BlackFideId "14118637"]
[WhiteElo "2267"]
[BlackElo "2056"]
[WhiteTeam "BRA"]
[BlackTeam "POL"]
[WhiteClock "0:00:09"]
[BlackClock "0:00:17"]

1. d4 {[%clk 0:02:58]}  d5 {[%clk 0:02:54]} 2. c4 {[%clk 0:02:59]}  e6 {[%clk 0:02:54]} 3. cxd5 {[%clk 0:02:54]}  exd5 {[%clk 0:02:54]} 4. Nc3 {[%clk 0:02:54]}  Nf6 {[%clk 0:02:54]} 5. Bf4 {[%clk 0:02:53]}  Bd6 {[%clk 0:02:52]} 6. Bxd6 {[%clk 0:02:51]}  Qxd6 {[%clk 0:02:52]} 7. e3 {[%clk 0:02:52]}  O-O {[%clk 0:02:51]} 8. Bd3 {[%clk 0:02:53]}  Re8 {[%clk 0:02:40]} 9. Nge2 {[%clk 0:02:52]}  c6 {[%clk 0:02:36]} 10. Qc2 {[%clk 0:02:52]}  Na6 {[%clk 0:02:29]} 11. a3 {[%clk 0:02:51]}  Nc7 {[%clk 0:02:29]} 12. h3 {[%clk 0:02:49]}  Ne6 {[%clk 0:02:28]} 13. Ng3 {[%clk 0:02:48]}  g6 {[%clk 0:02:25]} 14. O-O {[%clk 0:02:48]}  Ng5 {[%clk 0:02:24]} 15. f4 {[%clk 0:02:42]}  Rxe3 {[%clk 0:01:45]} 16. Qf2 {[%clk 0:02:25]}  Rxd3 {[%clk 0:01:41]} 17. fxg5 {[%clk 0:02:25]}  Qxg3 {[%clk 0:01:38]} 18. Qxf6 {[%clk 0:02:25]}  Be6 {[%clk 0:01:35]} 19. Rae1 {[%clk 0:02:18]}  Qd6 {[%clk 0:01:28]} 20. Re5 {[%clk 0:02:01]}  Rd2 {[%clk 0:01:20]} 21. Ne2 {[%clk 0:01:58]}  Rxb2 {[%clk 0:01:17]} 22. Nf4 {[%clk 0:01:56]}  Rf8 {[%clk 0:01:14]} 23. h4 {[%clk 0:01:38]}  Rd2 {[%clk 0:00:57]} 24. h5 {[%clk 0:01:36]}  Qd8 {[%clk 0:00:55]} 25. Rxe6 {[%clk 0:01:17]}  fxe6 {[%clk 0:00:54]} 26. Qxe6+ {[%clk 0:01:18]}  Kh8 {[%clk 0:00:53]} 27. Qe5+ {[%clk 0:00:38]}  Kg8 {[%clk 0:00:52]} 28. Qe6+ {[%clk 0:00:38]}  Kh8 {[%clk 0:00:41]} 29. Qe5+ {[%clk 0:00:27]}  Kg8 {[%clk 0:00:41]} 30. hxg6 {[%clk 0:00:27]}  hxg6 {[%clk 0:00:37]} 31. Qe6+ {[%clk 0:00:26]}  Kh8 {[%clk 0:00:25]} 32. Qxg6 {[%clk 0:00:23]}  Qe7 {[%clk 0:00:20]} 33. Rf3 {[%clk 0:00:16]}  Qg7 {[%clk 0:00:16]} 34. Rh3+ {[%clk 0:00:14]}  Kg8 {[%clk 0:00:17]} 35. Qe6+ {[%clk 0:00:14]}  Rf7 {[%clk 0:00:16]} 36. g6 {[%clk 0:00:12]}  Rd1+ {[%clk 0:00:15]} 37. Kh2 {[%clk 0:00:11]}  Kf8 {[%clk 0:00:14]} 38. gxf7 {[%clk 0:00:10]}  Qxf7 {[%clk 0:00:15]} 39. Rh8+ {[%clk 0:00:09]}  Kg7 {[%clk 0:00:15]} 40. Rh7+ {[%clk 0:00:09]}  Kxh7 {[%clk 0:00:16]} 41. Qxf7+ {[%clk 0:00:09]}  Kh8 {[%clk 0:00:17]} 42. Ng6# {[%clk 0:00:09]} 1-0

[Event "November 21 Late 2023"]
[Site "https://www.chess.com"]
[Date "2023.11.21"]
[Round "8"]
[White "Shton, Roman"]
[Black "Eggleston, Thomas A"]
[Result "0-1"]
[Board "91"]
[TimeControl "180+1"]
[WhiteFideId "14137461"]
[BlackFideId "412139"]
[WhiteElo "2027"]
[BlackElo "2169"]
[WhiteTeam "UKR"]
[BlackTeam "ENG"]
[WhiteClock "0:00:41"]
[BlackClock "0:00:11"]

1. d4 {[%clk 0:03:00]}  e6 {[%clk 0:03:00]} 2. Nf3 {[%clk 0:03:00]}  f5 {[%clk 0:03:00]} 3. Nc3 {[%clk 0:02:59]}  Nf6 {[%clk 0:03:00]} 4. Bg5 {[%clk 0:02:57]}  Bb4 {[%clk 0:03:01]} 5. Qd3 {[%clk 0:02:57]}  d5 {[%clk 0:02:58]} 6. a3 {[%clk 0:02:54]}  Bxc3+ {[%clk 0:02:57]} 7. Qxc3 {[%clk 0:02:54]}  O-O {[%clk 0:02:52]} 8. e3 {[%clk 0:02:45]}  b6 {[%clk 0:02:52]} 9. Bf4 {[%clk 0:02:42]}  c5 {[%clk 0:02:50]} 10. dxc5 {[%clk 0:02:41]}  Ne4 {[%clk 0:02:50]} 11. Qb3 {[%clk 0:02:35]}  Nxc5 {[%clk 0:02:33]} 12. Qc3 {[%clk 0:02:33]}  a5 {[%clk 0:02:20]} 13. Be2 {[%clk 0:02:19]}  Ba6 {[%clk 0:01:42]} 14. b4 {[%clk 0:02:07]}  Bxe2 {[%clk 0:01:36]} 15. bxc5 {[%clk 0:01:54]}  Bxf3 {[%clk 0:01:21]} 16. gxf3 {[%clk 0:01:54]}  Nc6 {[%clk 0:01:10]} 17. Rg1 {[%clk 0:01:50]}  Rf7 {[%clk 0:01:08]} 18. Bh6 {[%clk 0:01:41]}  d4 {[%clk 0:01:06]} 19. Qc4 {[%clk 0:01:33]}  Ne5 {[%clk 0:00:52]} 20. Qxe6 {[%clk 0:01:33]}  Nxf3+ {[%clk 0:00:51]} 21. Ke2 {[%clk 0:01:34]}  Nxg1+ {[%clk 0:00:48]} 22. Rxg1 {[%clk 0:01:34]}  Kf8 {[%clk 0:00:27]} 23. Bg5 {[%clk 0:01:18]}  Qd7 {[%clk 0:00:23]} 24. Qxb6 {[%clk 0:01:15]}  dxe3 {[%clk 0:00:18]} 25. fxe3 {[%clk 0:01:16]}  f4 {[%clk 0:00:16]} 26. c6 {[%clk 0:01:08]}  f3+ {[%clk 0:00:16]} 27. Kf2 {[%clk 0:01:04]}  Qd2+ {[%clk 0:00:16]} 28. Kg3 {[%clk 0:01:04]}  f2 {[%clk 0:00:14]} 29. Qc5+ {[%clk 0:00:53]}  Kg8 {[%clk 0:00:14]} 30. Rf1 {[%clk 0:00:50]}  Qe2 {[%clk 0:00:14]} 31. c7 {[%clk 0:00:43]}  Qxf1 {[%clk 0:00:11]} 32. c8=Q+ {[%clk 0:00:43]}  Rxc8 {[%clk 0:00:11]} 33. Qxc8+ {[%clk 0:00:44]}  Rf8 {[%clk 0:00:11]} 34. Qc4+ {[%clk 0:00:41]}  Qxc4 {[%clk 0:00:11]} 0-1

[Event "November 21 Late 2023"]
[Site "https://www.chess.com"]
[Date "2023.11.21"]
[Round "8"]
[White "gpsji27"]
[Black "Joie, Sebastien"]
[Result "0-1"]
[Board "93"]
[TimeControl "180+1"]
[BlackFideId "650420"]
[WhiteElo "2333"]
[BlackElo "2396"]
[BlackTeam "FRA"]
[WhiteClock "0:00:14"]
[BlackClock "0:00:07"]

1. d4 {[%clk 0:02:50]}  d5 {[%clk 0:02:57]} 2. Nc3 {[%clk 0:02:50]}  Nf6 {[%clk 0:02:57]} 3. Bg5 {[%clk 0:02:50]}  e6 {[%clk 0:02:57]} 4. e4 {[%clk 0:02:50]}  dxe4 {[%clk 0:02:58]} 5. Nxe4 {[%clk 0:02:50]}  Be7 {[%clk 0:02:59]} 6. Bxf6 {[%clk 0:02:51]}  Bxf6 {[%clk 0:03:00]} 7. Nf3 {[%clk 0:02:51]}  O-O {[%clk 0:03:00]} 8. c3 {[%clk 0:02:52]}  b6 {[%clk 0:02:59]} 9. Bd3 {[%clk 0:02:52]}  Bb7 {[%clk 0:02:57]} 10. Qe2 {[%clk 0:02:53]}  Nd7 {[%clk 0:02:57]} 11. O-O-O {[%clk 0:02:54]}  Qe7 {[%clk 0:02:55]} 12. h4 {[%clk 0:02:54]}  c5 {[%clk 0:02:50]} 13. dxc5 {[%clk 0:02:53]}  Nxc5 {[%clk 0:02:41]} 14. Nxc5 {[%clk 0:02:35]}  Qxc5 {[%clk 0:02:39]} 15. Kb1 {[%clk 0:02:36]}  Rfd8 {[%clk 0:02:26]} 16. Ng5 {[%clk 0:02:33]}  g6 {[%clk 0:02:19]} 17. Ne4 {[%clk 0:01:53]}  Bxe4 {[%clk 0:01:50]} 18. Bxe4 {[%clk 0:01:54]}  Rxd1+ {[%clk 0:01:46]} 19. Rxd1 {[%clk 0:01:52]}  Rc8 {[%clk 0:01:44]} 20. g3 {[%clk 0:01:50]}  b5 {[%clk 0:01:36]} 21. Qe3 {[%clk 0:01:45]}  Qc7 {[%clk 0:01:28]} 22. Qf3 {[%clk 0:01:40]}  Bg7 {[%clk 0:01:20]} 23. a3 {[%clk 0:01:32]}  a5 {[%clk 0:01:18]} 24. Qf4 {[%clk 0:01:24]}  b4 {[%clk 0:00:42]} 25. Qxc7 {[%clk 0:01:17]}  Rxc7 {[%clk 0:00:43]} 26. axb4 {[%clk 0:01:18]}  axb4 {[%clk 0:00:43]} 27. cxb4 {[%clk 0:01:16]}  Rc4 {[%clk 0:00:43]} 28. Rd8+ {[%clk 0:01:00]}  Bf8 {[%clk 0:00:43]} 29. Bd3 {[%clk 0:01:00]}  Rxb4 {[%clk 0:00:41]} 30. Kc2 {[%clk 0:01:00]}  Kg7 {[%clk 0:00:40]} 31. b3 {[%clk 0:00:59]}  Be7 {[%clk 0:00:38]} 32. Rd7 {[%clk 0:00:58]}  Bf6 {[%clk 0:00:36]} 33. Bc4 {[%clk 0:00:58]}  Rb6 {[%clk 0:00:35]} 34. Kd3 {[%clk 0:00:56]}  Kf8 {[%clk 0:00:19]} 35. Ke4 {[%clk 0:00:54]}  Ke8 {[%clk 0:00:17]} 36. Ra7 {[%clk 0:00:54]}  Rd6 {[%clk 0:00:15]} 37. Kf3 {[%clk 0:00:48]}  Bd4 {[%clk 0:00:14]} 38. Ra8+ {[%clk 0:00:45]}  Ke7 {[%clk 0:00:14]} 39. Ra2 {[%clk 0:00:40]}  Bc5 {[%clk 0:00:12]} 40. Re2 {[%clk 0:00:39]}  Kd7 {[%clk 0:00:08]} 41. Re5 {[%clk 0:00:37]}  Kc6 {[%clk 0:00:08]} 42. Ke2 {[%clk 0:00:32]}  Rd4 {[%clk 0:00:06]} 43. f3 {[%clk 0:00:26]}  Rd8 {[%clk 0:00:06]} 44. g4 {[%clk 0:00:20]}  Ra8 {[%clk 0:00:06]} 45. h5 {[%clk 0:00:18]}  Ra2+ {[%clk 0:00:06]} 46. Kd3 {[%clk 0:00:18]}  Rf2 {[%clk 0:00:06]} 47. Ke4 {[%clk 0:00:16]}  Rh2 {[%clk 0:00:03]} 48. hxg6 {[%clk 0:00:16]}  hxg6 {[%clk 0:00:04]} 49. Kf4 {[%clk 0:00:14]}  Bd6 {[%clk 0:00:03]} 50. Bb5+ {[%clk 0:00:10]}  Kc7 {[%clk 0:00:03]} 51. Bc4 {[%clk 0:00:10]}  Rh1 {[%clk 0:00:02]} 52. Ke4 {[%clk 0:00:10]}  Re1+ {[%clk 0:00:02]} 53. Kf4 {[%clk 0:00:10]}  Bxe5+ {[%clk 0:00:02]} 54. Kg5 {[%clk 0:00:11]}  Re3 {[%clk 0:00:02]} 55. Kh6 {[%clk 0:00:12]}  Bf4+ {[%clk 0:00:03]} 56. Kh7 {[%clk 0:00:12]}  Rxf3 {[%clk 0:00:03]} 57. Kg8 {[%clk 0:00:13]}  Be5 {[%clk 0:00:04]} 58. Kf8 {[%clk 0:00:13]}  Kd6 {[%clk 0:00:04]} 59. Bxe6 {[%clk 0:00:12]}  fxe6+ {[%clk 0:00:04]} 60. Ke8 {[%clk 0:00:12]}  Rxb3 {[%clk 0:00:03]} 61. g5 {[%clk 0:00:13]}  Bf4 {[%clk 0:00:02]} 62. Kf7 {[%clk 0:00:14]}  Bxg5 {[%clk 0:00:03]} 63. Kxg6 {[%clk 0:00:14]}  Bf4 {[%clk 0:00:04]} 64. Kf7 {[%clk 0:00:14]}  Be5 {[%clk 0:00:05]} 65. Ke8 {[%clk 0:00:14]}  Ba1 {[%clk 0:00:06]} 66. Kf7 {[%clk 0:00:14]}  e5 {[%clk 0:00:07]} 67. Ke8 {[%clk 0:00:14]}  e4 {[%clk 0:00:07]} 68. Kf7 {[%clk 0:00:14]}  Rb6 {[%clk 0:00:07]} 69. Ke8 {[%clk 0:00:14]}  Ke6 {[%clk 0:00:06]} 70. Kd8 {[%clk 0:00:15]}  Rc6 {[%clk 0:00:07]} 71. Ke8 {[%clk 0:00:14]}  Rc8# {[%clk 0:00:07]} 0-1

[Event "November 21 Late 2023"]
[Site "https://www.chess.com"]
[Date "2023.11.21"]
[Round "8"]
[White "Martins, Vinicius Tine"]
[Black "Saim, Mohamed Ilias"]
[Result "0-1"]
[Board "96"]
[TimeControl "180+1"]
[WhiteFideId "2112884"]
[BlackFideId "7900465"]
[WhiteElo "2373"]
[BlackElo "2063"]
[WhiteTeam "BRA"]
[BlackTeam "ALG"]
[WhiteClock "0:00:09"]
[BlackClock "0:00:03"]

1. d4 {[%clk 0:03:00]}  Nf6 {[%clk 0:02:59]} 2. Bf4 {[%clk 0:02:59]}  d5 {[%clk 0:02:59]} 3. Nf3 {[%clk 0:02:53]}  c5 {[%clk 0:02:59]} 4. e3 {[%clk 0:02:51]}  Nc6 {[%clk 0:02:59]} 5. Nbd2 {[%clk 0:02:48]}  Bf5 {[%clk 0:02:52]} 6. c3 {[%clk 0:02:36]}  Qb6 {[%clk 0:02:44]} 7. Qb3 {[%clk 0:02:29]}  c4 {[%clk 0:02:36]} 8. Qxb6 {[%clk 0:02:24]}  axb6 {[%clk 0:02:37]} 9. a3 {[%clk 0:02:19]}  b5 {[%clk 0:02:37]} 10. Rc1 {[%clk 0:02:16]}  Nh5 {[%clk 0:02:17]} 11. Bg3 {[%clk 0:02:06]}  Nxg3 {[%clk 0:02:13]} 12. hxg3 {[%clk 0:02:05]}  h6 {[%clk 0:02:12]} 13. Be2 {[%clk 0:02:00]}  e6 {[%clk 0:02:11]} 14. Bd1 {[%clk 0:01:59]}  Bg4 {[%clk 0:02:01]} 15. Bc2 {[%clk 0:01:55]}  f5 {[%clk 0:02:00]} 16. Nh4 {[%clk 0:01:49]}  Bd6 {[%clk 0:01:40]} 17. Ng6 {[%clk 0:01:32]}  Rg8 {[%clk 0:01:35]} 18. f3 {[%clk 0:01:26]}  Bxg3+ {[%clk 0:01:35]} 19. Ke2 {[%clk 0:01:25]}  Kf7 {[%clk 0:01:25]} 20. Nf4 {[%clk 0:01:24]}  g5 {[%clk 0:01:17]} 21. fxg4 {[%clk 0:00:56]}  gxf4 {[%clk 0:01:14]} 22. gxf5 {[%clk 0:00:55]}  Rh8 {[%clk 0:01:07]} 23. Nf1 {[%clk 0:00:48]}  exf5 {[%clk 0:00:58]} 24. Kf3 {[%clk 0:00:46]}  Rae8 {[%clk 0:00:47]} 25. Bxf5 {[%clk 0:00:42]}  Kf6 {[%clk 0:00:34]} 26. Bc2 {[%clk 0:00:39]}  Kg5 {[%clk 0:00:27]} 27. Rd1 {[%clk 0:00:24]}  Rhf8 {[%clk 0:00:26]} 28. Nxg3 {[%clk 0:00:19]}  fxg3+ {[%clk 0:00:26]} 29. Kxg3 {[%clk 0:00:19]}  Rxe3+ {[%clk 0:00:26]} 30. Kh2 {[%clk 0:00:20]}  Re2 {[%clk 0:00:24]} 31. Bb1 {[%clk 0:00:13]}  Rff2 {[%clk 0:00:23]} 32. Rhg1 {[%clk 0:00:14]}  Rxb2 {[%clk 0:00:22]} 33. Rde1 {[%clk 0:00:13]}  Rbe2 {[%clk 0:00:19]} 34. Rxe2 {[%clk 0:00:12]}  Rxe2 {[%clk 0:00:20]} 35. Rf1 {[%clk 0:00:13]}  Re3 {[%clk 0:00:18]} 36. Rf5+ {[%clk 0:00:12]}  Kg4 {[%clk 0:00:17]} 37. Rxd5 {[%clk 0:00:11]}  Rxc3 {[%clk 0:00:16]} 38. Rxb5 {[%clk 0:00:11]}  Rxa3 {[%clk 0:00:13]} 39. Rxb7 {[%clk 0:00:10]}  Nxd4 {[%clk 0:00:13]} 40. Rb4 {[%clk 0:00:09]}  Rc3 {[%clk 0:00:13]} 41. Ba2 {[%clk 0:00:09]}  Rc2 {[%clk 0:00:09]} 42. Bxc4 {[%clk 0:00:09]}  Nf3+ {[%clk 0:00:05]} 43. Kh1 {[%clk 0:00:09]}  Rc1+ {[%clk 0:00:05]} 44. Bf1+ {[%clk 0:00:09]}  Kg3 {[%clk 0:00:03]} 45. gxf3 {[%clk 0:00:09]}  Rxf1# {[%clk 0:00:03]} 0-1